Cogmind - Beta 10.2 @@@ ROGUE MODE // 2020.12.16 @ 22:42:49 Player: Hermelin Result: Escaped! Performance ------------- Evolutions (9) 4500 Regions Visited (31) 6200 Robots Destroyed (259) 1295 Value Destroyed (15921) 15921 Prototype IDs (57) 1140 Alien Tech Used (0) 0 Bonus (15100) 15100 TOTAL SCORE: 44156 Bonus ------- High Alert Combat Kills 1350 Follower Combat Kills 4503 Entered Garrisons 2000 Used RIF Installer 5000 Aligned with FarCom 300 Win 3000 Friendly Fire -1053 Cogmind --------- Core Integrity 1193/1600 Matter 300/300 Energy 406/420 System Corruption 11% Temperature Cool (4) Movement Walking (100) Location To Epsilon Eridani Parts ------- > --- POWER (2) -------- Micro Fission Core Reinforced Quantum Reactor > --- PROPULSION (4) --- Enhanced Biometal Leg Enhanced Biometal Leg Enhanced Biometal Leg Enhanced Biometal Leg > --- UTILITY (16) ----- Large Storage Unit Large Storage Unit Advanced Targeting Computer Advanced Targeting Computer Advanced Melee Analysis Suite Advanced Target Analyzer Advanced Core Analyzer Advanced Force Field Relay Coupler [Swarmer] (11) Relay Coupler [Sentry] (2) Relay Coupler [Specialist] (22) Relay Coupler [Hunter] (2) > --- WEAPON (3) ------- Power Sword Enhanced Force Lance > --- INVENTORY (16) --- Light Quantum Reactor Armored Heavy Treads Armored Heavy Treads Enhanced Biometal Leg Experimental Myomer Leg High-density Centrium Leg High-density Centrium Leg High-density Centrium Leg Gamma Rifle Hypervelocity Railgun Hypervelocity Railgun Gamma Bomb Array Advanced Remote Datajack Improved Plasma Cutter Peak State ------------ > --- POWER ------------ Micro Fission Core Reinforced Quantum Reactor > --- PROPULSION ------- Enhanced Biometal Leg Enhanced Biometal Leg Enhanced Biometal Leg Enhanced Biometal Leg > --- UTILITY ---------- Advanced Cooling System Large Storage Unit Large Storage Unit Advanced Targeting Computer Advanced Targeting Computer Advanced Target Analyzer Advanced Core Analyzer Quantum Capacitor Advanced Phase Shifter Advanced Force Field Relay Coupler [ARC] Relay Coupler [Swarmer] Relay Coupler [Sentry] Relay Coupler [Specialist] Relay Coupler [Hunter] > --- WEAPON ----------- Gamma Rifle Heavy Machine Gun Enhanced Force Lance > --- INVENTORY -------- Micro Fission Core Light Quantum Reactor Armored Heavy Treads Armored Heavy Treads Enhanced Biometal Leg Experimental Myomer Leg High-density Centrium Leg High-density Centrium Leg High-density Centrium Leg Gamma Rifle Gamma Bomb Array Improved Remote Datajack Advanced Remote Datajack Improved Plasma Cutter [Rating: 168] Favorites ----------- Power Micro Fission Core Engine Improved Ion Engine Power Core Micro Fission Core Reactor Reinforced Quantum Reactor Propulsion Light Treads Treads Light Treads Leg Enhanced Biometal Leg Hover Unit Combat Airjet Utility Large Storage Unit Device Advanced Cooling System Storage Large Storage Unit Processor Improved Armor Integrity Analyzer Hackware Relay Coupler [NC] Protection Reactive Plating Weapon Shock Rifle Energy Gun Shock Rifle Energy Cannon Guided Plasma Cannon Ballistic Gun KE Penetrator Ballistic Cannon Antimatter Cannon Launcher Shock Bomb Launcher Special Weapon Remote Datajack Impact Weapon Hammer Slashing Weapon Scythe Piercing Weapon Enhanced Force Lance Special Melee Weapon Datajack Build | -11 -10 -10 -9 -9 -9 -8 -8 -8 -8 -8 -7 -7 -7 -7 -6 -6 -6 -6 -6 -6 -5 -5 -5 -5 -4 -4 -4 -4 -3 -2 -1 ------- Run | Scr Mat Min Mat Min Exi Min Mat Gar Mat Gar Fac Gar Fac Gar Fac Was Fac Gar Fac Gar Fac Gar Fac Gar Fac Gar Fac Gar Res Res Acc Slots Evolved 18 | . . . 2 . . . 2 . . . 2 . . . 2 . . . . . 2 . . . 2 . . . 2 2 2 Power 1 | . . . . . . . . . . . 1 . . . . . . . . . . . . . . . . . . . . Propulsion 2 | . . . . . . . 1 . . . . . . . . . . . . . . . . . . . . . 1 . . Utility 14 | . . . 1 . . . 1 . . . 1 . . . 2 . . . . . 2 . . . 2 . . . 1 2 2 Weapon 1 | . . . 1 . . . . . . . . . . . . . . . . . . . . . . . . . . . . Parts Attached 421 | 7 . . 23 5 5 1 23 6 37 16 17 15 4 12 4 7 2 2 8 17 27 44 14 12 4 11 12 16 14 24 32 Power 43 | 1 . . 2 1 . . 2 . 4 3 4 1 . 2 . . . . 2 1 3 5 1 1 2 . 2 . . 2 4 Engine 18 | 1 . . 2 1 . . 2 . 4 2 3 . . 1 . . . . . 1 1 . . . . . . . . . . Core 21 | . . . . . . . . . . 1 1 1 . 1 . . . . 2 . 2 5 1 1 2 . 2 . . . 2 Reactor 4 | . . . . . . . . . . . . . . . . . . . . . . . . . . . . . . 2 2 Propulsion 79 | 2 . . 7 1 . . 9 4 12 5 2 2 1 . . . . . . 2 5 12 1 . . . . . 6 8 . Treads 38 | 2 . . 7 1 . . 9 . 12 2 . . . . . . . . . . 1 4 . . . . . . . . . Leg 19 | . . . . . . . . 4 . . . . . . . . . . . . 2 2 . . . . . . 3 8 . Wheel . | . . . . . . . . . . . . . . . . . . . . . . . . . . . . . . . . Hover 22 | . . . . . . . . . . 3 2 2 1 . . . . . . 2 2 6 1 . . . . . 3 . . Flight . | . . . . . . . . . . . . . . . . . . . . . . . . . . . . . . . . Utility 144 | 2 . . 4 1 2 . 5 . 9 3 5 5 2 4 3 4 . 2 5 8 8 11 6 8 2 8 7 7 6 6 11 Device 32 | . . . . . 1 . 2 . 4 1 1 . . . 1 1 . . . . . 3 3 . 1 2 3 . . 4 5 Storage 11 | 2 . . 2 . . . 1 . 3 1 . . . . . . . . . . 1 . . . . . 1 . . . . Processor 13 | . . . . . . . . . 1 . . . . . 2 . . . . 2 1 . 1 . 1 . . . 1 . 4 Hackware 69 | . . . . . . . . . 1 . 2 5 2 4 . 1 . 2 4 6 6 7 1 8 . 5 2 7 3 2 1 Protection 19 | . . . 2 1 1 . 2 . . 1 2 . . . . 2 . . 1 . . 1 1 . . 1 1 . 2 . 1 Artifact . | . . . . . . . . . . . . . . . . . . . . . . . . . . . . . . . . Weapon 155 | 2 . . 10 2 3 1 7 2 12 5 6 7 1 6 1 3 2 . 1 6 11 16 6 3 . 3 3 9 2 8 17 Energy Gun 40 | 2 . . 8 . . . 3 2 4 1 2 . . . . . . . . . 2 6 2 1 . . . . . 3 4 Energy Cannon 9 | . . . . . . 1 . . . . . 2 . 1 . . . . . . . 1 . . . . . . . 1 3 Ballistic Gun 40 | . . . 2 2 . . . . 6 1 2 4 1 2 1 . . . 1 . 1 2 2 1 . 2 2 2 1 2 3 Ballistic Cannon 12 | . . . . . . . . . . . . . . . . . 2 . . 1 3 2 . . . 1 . 2 . 1 . Launcher 7 | . . . . . . . . . 1 1 . . . . . . . . . 1 . . 1 . . . . . . . 3 Special Weapon 28 | . . . . . . . . . . . 1 1 . 1 . 2 . . . 3 4 4 1 1 . . 1 5 1 1 2 Impact Weapon 2 | . . . . . 2 . . . . . . . . . . . . . . . . . . . . . . . . . . Slashing Weapon 12 | . . . . . . . 4 . . 2 . . . 2 . . . . . 1 1 1 . . . . . . . . 1 Piercing Weapon 2 | . . . . . . . . . . . . . . . . 1 . . . . . . . . . . . . . . 1 Special Melee Weapon 3 | . . . . . 1 . . . 1 . 1 . . . . . . . . . . . . . . . . . . . . Unidentified Prototypes 8 | . . . 2 . . . . . . . . . . . . 1 1 . . . . . . . . . . . 1 2 1 Parts Lost 74 | . . . 2 1 . . 2 4 6 5 9 2 . 3 . . . . 1 4 8 4 1 . . 1 . . 1 6 14 Power 10 | . . . . . . . 1 . . 2 3 . . 2 . . . . . . 1 . . . . . . . . . 1 Propulsion 11 | . . . . . . . . 2 1 1 1 . . . . . . . . 2 4 . . . . . . . . . . Utility 12 | . . . . . . . . . . . . . . . . . . . 1 1 . 1 . . . . . . 1 2 6 Weapon 41 | . . . 2 1 . . 1 2 5 2 5 2 . 1 . . . . . 1 3 3 1 . . 1 . . . 4 7 Highest Loss Streak 6 | . . . 1 1 . . 1 2 2 2 6 1 . 3 . . . . 1 3 4 3 1 . . 1 . . 1 6 4 Average Slot Usage (%) 97 | . 100 100 98 99 79 90 98 98 99 96 96 96 100 98 95 100 99 100 97 96 86 97 99 100 99 100 99 100 99 94 93 Engine 6 | . 14 14 10 11 11 11 9 9 9 6 13 7 7 6 6 6 6 6 6 6 2 1 . . . . . . . . . Core 4 | . . . . . . . . . . 2 . 7 7 7 6 6 6 6 6 6 4 9 11 11 10 10 10 10 9 6 4 Treads 10 | . 28 28 22 21 22 22 26 22 23 18 . . . . . . . . . . 2 9 . . . . . . . . . Leg 1 | . . . . . . . . 3 3 . . . . . . . . . . . 3 1 . . . . . . . 10 16 Hover 8 | . . . . . . . . . . 9 22 23 23 23 20 20 20 20 20 20 8 5 16 17 15 15 15 15 18 6 . Device 3 | . . . . . . . 5 . 6 4 5 . . . 1 1 . . . . . 4 3 1 5 5 7 10 9 13 14 Storage 16 | . 28 28 22 22 22 22 19 27 20 18 15 15 15 15 13 13 13 13 13 13 11 11 11 11 10 10 10 10 9 8 8 Processor 2 | . . . . . . . . . 4 . . . . . 6 6 6 6 6 8 3 . 1 . 4 5 5 5 4 4 12 Hackware 14 | . . . . . . . . . 1 9 13 21 23 23 20 20 20 24 21 21 34 31 29 33 31 31 28 27 30 28 21 Protection 5 | . . . 10 11 10 11 10 9 2 4 3 . . . . 5 6 1 2 1 . 3 5 5 5 5 5 3 1 . 1 Energy Gun 8 | . 28 28 23 7 . . 5 26 21 4 6 . . . . . . . . . 3 6 8 10 10 6 . . . 3 2 Ballistic Gun 6 | . . . 9 25 . . . . 3 15 9 13 15 13 13 13 11 6 6 4 1 2 2 . . 3 7 6 6 4 1 Ballistic Cannon 1 | . . . . . . . . . . . . . . . . . . 6 6 4 2 2 . . . 1 5 4 2 . . Special Weapon 2 | . . . . . . . . . . . . 6 7 6 6 6 6 6 6 7 3 2 5 5 5 3 2 3 3 2 1 Slashing Weapon 1 | . . . . . . . 19 . . 4 . . . . . . . . . . . . . . . . . . . . . Naked Turns . | . . . . . . . . . . . . . . . . . . . . . . . . . . . . . . . . Heaviest Build 124 | 17 17 17 42 45 39 49 58 58 58 55 62 64 58 65 60 61 65 65 66 69 69 70 69 67 67 74 82 82 81 97 124 Greatest Support 126 | 40 40 40 40 40 40 40 71 62 60 66 66 66 66 66 66 66 66 66 66 66 58 80 75 75 75 75 75 75 100 126 120 Greatest Overweight (x) 23 | . . . 1 2 . 1 1 5 1 2 1 1 . . . . . . . 1 3 2 1 . . . 1 1 23 2 1 Average Overweight (x) . | . . . . 1 . . . . . . . . . . . . . . . . . . . . . . . . . . . Largest Inventory Capacity 22 | 8 8 8 12 12 12 12 18 18 18 16 16 16 16 16 16 16 16 16 16 16 22 16 16 16 16 16 16 16 16 16 16 Average Capacity 15 | 7 8 8 11 12 12 12 13 18 15 16 16 16 16 16 16 16 16 16 16 16 16 16 16 16 16 16 16 16 16 16 16 Most Carried 18 | 6 6 6 12 12 12 11 18 18 18 16 16 16 16 16 16 16 16 16 16 16 16 16 16 16 16 16 16 16 16 16 16 Average Carried 14 | 2 6 6 11 11 11 10 12 17 15 15 15 15 15 15 16 15 16 15 15 15 14 15 15 15 15 15 15 15 15 15 15 Final Capacity 18 | 8 8 8 12 12 12 12 18 18 16 16 16 16 16 16 16 16 16 16 16 16 16 16 16 16 16 16 16 16 16 16 16 Final Carried 18 | 6 6 6 12 12 11 10 18 18 16 16 16 16 15 16 16 16 16 16 14 16 16 16 16 16 16 16 16 16 16 16 16 Class Distribution -------------------- 40% | Botlord-Mutant 11% | Scavenger-Mutant 9% | Bothacker-Mutant 9% | Scavenger-Tank 8% | Mutant 7% | Skirmisher 4% | Tank 3% | Scavenger-Skirmisher Dominant Class ---------------- Mutant | -10/Materials Mutant | -10/Mines Scavenger-Tank | -9/Materials Scavenger-Tank | -9/Mines Scavenger-Mutant | -9/Exiles Scavenger-Mutant | -8/Mines Mutant | -8/Materials Skirmisher | -8/Garrison Skirmisher | -8/Materials Scavenger-Mutant | -8/Garrison Bothacker-Mutant | -7/Factory Bothacker-Mutant | -7/Garrison Bothacker-Mutant | -7/Factory Botlord-Mutant | -7/Garrison Botlord-Scout | -6/Factory Botlord-Mutant | -6/Waste Botlord-Mutant | -6/Factory Botlord-Mutant | -6/Garrison Botlord-Mutant | -6/Factory Botlord-Mutant | -6/Garrison Botlord-Mutant | -5/Factory Botlord-Mutant | -5/Garrison Botlord-Mutant | -5/Factory Botlord-Mutant | -5/Garrison Botlord-Mutant | -4/Factory Botlord-Mutant | -4/Garrison Botlord-Mutant | -4/Factory Botlord-Mutant | -4/Garrison Botlord-Mutant | -3/Research Botlord-Mutant | -2/Research Botlord-Mutant | -1/Access Resources | -11 -10 -10 -9 -9 -9 -8 -8 -8 -8 -8 -7 -7 -7 -7 -6 -6 -6 -6 -6 -6 -5 -5 -5 -5 -4 -4 -4 -4 -3 -2 -1 ----------- Run | Scr Mat Min Mat Min Exi Min Mat Gar Mat Gar Fac Gar Fac Gar Fac Was Fac Gar Fac Gar Fac Gar Fac Gar Fac Gar Fac Gar Res Res Acc Matter Collected 9482 | 270 . . 574 159 . 113 230 50 446 338 273 486 21 626 . 150 20 141 467 530 627 805 160 341 74 213 510 298 475 414 671 Remotely . | . . . . . . . . . . . . . . . . . . . . . . . . . . . . . . . . Salvage Created 13020 | 88 . . 1852 147 . 236 1337 681 1035 953 400 466 21 596 . . . 94 154 287 530 769 160 60 . . 305 38 298 90 2423 Parts 665 | 2 . . 120 10 . 9 77 27 62 49 17 22 2 25 . . . 8 10 15 21 41 5 5 . . 9 1 16 3 109 Haulers Intercepted 11 | . . . 5 . . . 1 . 3 . . . . . . . . . . . . . . . . . 2 . . . . Recyclers Shooed 1 | . . . . . . . . . . . . . . . . . . . . . . . . . . . . . . . 1 Parts Field Recycled . | . . . . . . . . . . . . . . . . . . . . . . . . . . . . . . . . Retrieved Matter . | . . . . . . . . . . . . . . . . . . . . . . . . . . . . . . . . Parts Self-Destructed . | . . . . . . . . . . . . . . . . . . . . . . . . . . . . . . . . Prevented . | . . . . . . . . . . . . . . . . . . . . . . . . . . . . . . . . Kills | -11 -10 -10 -9 -9 -9 -8 -8 -8 -8 -8 -7 -7 -7 -7 -6 -6 -6 -6 -6 -6 -5 -5 -5 -5 -4 -4 -4 -4 -3 -2 -1 ------- Run | Scr Mat Min Mat Min Exi Min Mat Gar Mat Gar Fac Gar Fac Gar Fac Was Fac Gar Fac Gar Fac Gar Fac Gar Fac Gar Fac Gar Res Res Acc Combat Hostiles Destroyed 207 | . . . 32 6 . 3 23 17 14 16 8 9 . 13 . . . 2 3 9 8 10 2 1 . . 2 1 4 1 23 Melee 28 | . . . . . . 1 14 . . . . . . 1 . . . . . . . . . . . . . . . . 12 Guns 119 | . . . 31 6 . . 5 13 4 11 8 7 . 12 . . . . 1 2 2 5 2 1 . . 2 1 3 1 2 Cannons 28 | . . . . . . 2 . . . . . 2 . . . . . 2 2 7 4 4 . . . . . . 1 . 4 AOE 18 | . . . 1 . . . 3 3 4 5 . . . . . . . . . . 1 1 . . . . . . . . . Classes Destroyed 17 | 1 . . 7 1 . 1 3 1 1 . 1 . . . . . . 1 . . . . . . . . . . . . . Worker 14 | . . . 3 . . 3 2 . 3 . . . . . . . . . . . . . . . . . 1 . . . 2 Builder 3 | . . . . . . . 1 . . . . . . . . . . . . . . . . . . . . . . . 2 Tunneler 4 | . . . . . . 1 . . . . . . . . . . . . 1 . 1 . 1 . . . . . . . . Hauler 11 | . . . 5 . . . 1 . 3 . . . . . . . . . . . . . . . . . 2 . . . . Recycler 5 | 1 . . . . . . 1 . . . . . . . . . . . . . 1 . . . . . . . . . 2 Mechanic 1 | . . . . . . . 1 . . . . . . . . . . . . . . . . . . . . . . . . Operator 3 | . . . 2 . . . . . . . . . . . . . . . . . . . . . . . . . . . 1 Watcher 5 | . . . . . . . 1 . 1 . 1 . 1 1 . . . . . . . . . . . . . . . . . Swarmer 43 | . . . 3 4 . . 3 7 . 4 3 4 . 4 . . . . . 5 . 5 . . . . 1 . . . . Grunt 94 | . . . 20 1 . 2 14 8 4 11 2 5 . 5 . . . . 1 4 4 2 1 . . . . 1 . . 9 Brawler 2 | . . . . 1 . . . . 1 . . . . . . . . . . . . . . . . . . . . . . Duelist 8 | . . . 2 . . 1 . . 1 . 1 . . 1 . . . . . . . 1 . . . . . . . . 1 Protector 1 | . . . . . . . . . 1 . . . . . . . . . . . . . . . . . . . . . . Sentry 29 | . . . 7 . . . 6 1 5 1 1 . . 2 . . . . 1 . . 1 . . . . 1 . 2 . 1 Hunter 15 | . . . . . . . . 1 2 . . 1 . 1 . . . 1 . 1 . . 1 . . . . . . 1 6 Programmer 19 | . . . . . . . . . . . 1 1 . . . . . . 1 . 4 2 . 1 . . . . 2 . 7 Behemoth 2 | . . . . . . . . . . . . . . . . . . 1 . . . 1 . . . . . . . . . Best Kill Streak 9 | 1 . . 3 4 . 1 9 5 7 7 5 2 1 5 . . . 1 2 2 4 4 1 1 . . 2 1 2 1 6 Combat Bots Only 7 | . . . 3 4 . 1 7 5 7 7 5 2 . 5 . . . 1 1 2 3 4 1 1 . . 1 1 2 1 5 Max Kills in Single Turn 4 | 1 . . 2 1 . 1 4 2 3 4 1 1 1 2 . . . 1 2 1 2 2 1 1 . . 1 1 1 1 2 Gunslinging 1 | . . . . . . . . . . . . . . 1 . . . . . . . . . . . . . . . . . Exploded 4 | . . . 1 . . . 3 2 3 4 . . . . . . . . . . 1 1 . . . . . . . . . Melee 1 | . . . . . . 1 1 . . . . . . 1 . . . . . . . . . . . . . . . . 1 Uniques/NPCs Destroyed . | . . . . . . . . . . . . . . . . . . . . . . . . . . . . . . . . Combat | -11 -10 -10 -9 -9 -9 -8 -8 -8 -8 -8 -7 -7 -7 -7 -6 -6 -6 -6 -6 -6 -5 -5 -5 -5 -4 -4 -4 -4 -3 -2 -1 -------- Run | Scr Mat Min Mat Min Exi Min Mat Gar Mat Gar Fac Gar Fac Gar Fac Was Fac Gar Fac Gar Fac Gar Fac Gar Fac Gar Fac Gar Res Res Acc Damage Taken 17401 | . . . 1090 176 . 183 1293 529 1014 831 1346 581 . 571 . . . 172 307 634 868 1633 242 311 . 369 279 251 295 1191 3235 Core 2236 | . . . 145 4 . 17 129 108 43 118 186 116 . 93 . . . 35 61 37 130 130 16 25 . . 62 39 35 300 407 Absorbed by Shields 1527 | . . . . . . . . . . . . . . . . . . . . 65 . 249 . 109 . . 51 36 114 74 829 Core Remaining (%) 74 | 100 . 100 . . . 58 . . . 27 . . . 43 . . . . . 84 . . . 69 . . . 91 97 79 74 Volleys Fired 967 | 2 . . 96 11 . 5 15 49 40 36 45 52 23 54 1 8 5 14 63 49 63 39 20 32 1 23 49 18 42 27 85 Largest 3 | 2 . . 3 3 . 1 3 3 3 3 3 3 2 2 1 1 1 2 2 2 3 3 2 2 1 2 3 3 3 3 2 Hottest 158 | 90 . . 140 91 . 120 150 150 150 98 110 120 51 120 30 30 30 70 68 68 126 158 125 130 40 130 131 131 131 131 120 Shots Fired 1600 | 4 . . 250 33 . 5 43 101 94 64 86 80 26 88 1 8 5 20 79 73 81 80 23 42 1 32 69 25 55 46 86 Gun 1106 | 4 . . 250 33 . . 43 101 90 60 86 59 6 72 . 5 . 10 19 24 26 40 9 29 . 20 31 10 19 28 32 Cannon 188 | . . . . . . 5 . . . . . 3 . 3 . . . 6 16 34 26 33 . . . . 17 4 4 5 32 Launcher 15 | . . . . . . . . . 4 4 . . . . . . . . . . . . 1 . . . . . . . 6 Special 291 | . . . . . . . . . . . . 18 20 13 1 3 5 4 44 15 29 7 13 13 1 12 21 11 32 13 16 Kinetic 702 | . . . 77 29 . . . . 7 51 58 59 6 72 . 5 . 16 35 58 31 52 3 5 . 1 48 14 23 30 22 Thermal 113 | 2 . . 33 . . 5 . . . 6 28 3 . 3 . . . . . . . . . . . . . . . . 33 Explosive . | . . . . . . . . . . . . . . . . . . . . . . . . . . . . . . . . Electromagnetic 494 | 2 . . 140 4 . . 43 101 87 7 . . . . . . . . . . 21 21 7 24 . 19 . . . 3 15 Robot Hit Streak 23 | 4 . . 15 9 . 1 9 12 15 21 23 23 6 8 8 7 8 4 10 15 11 11 8 5 5 11 13 11 7 12 15 Robot Miss Streak 5 | . . . 3 4 . . 2 3 2 2 5 2 2 5 . 1 1 3 2 4 3 3 1 2 . 4 3 1 3 3 3 Penetration Max 1 | . . . . . . . . . . . . . . . . . . . . . . 1 . . . . 1 1 . . 1 Secondary Targets 9 | . . . . 1 . . . 2 . 3 1 1 . 1 . . . . . . . . . . . . . . . . . Max Gunslinging Chain 1 | . . . . 1 . . . 1 . 1 1 1 . 1 . . . . . . . . . . . . . . . . . Capacitor 16 | . . . . . . . . . . . . . . . . . . . . . . . . . . . . . . . 16 Shots Hit Robots 1205 | 4 . . 163 17 5 12 85 61 69 55 76 46 19 60 1 7 4 9 56 50 56 57 17 24 1 23 47 18 35 36 92 Core Hits 458 | 2 . . 89 8 . 5 36 25 27 33 25 17 2 21 . . . 2 7 17 12 23 4 5 . 2 9 4 10 5 68 Critical Hits 36 | . . . . . . . 2 . . 1 . . . 3 . . . . 1 2 1 2 . 1 . . 4 . 2 3 14 Critical Kills 17 | . . . . . . . . . . 1 . . . . . . . . . 1 1 2 . 1 . . 3 . 2 1 5 Critical Parts Destroyed 14 | . . . . . . . 2 . . . . . . 3 . . . . 1 1 . . . . . . 1 . . . 6 Melee Attacks 179 | . . . . . 5 19 66 . 2 13 13 . . 8 . . . . . 1 . 9 . . . . . . . . 43 Impact 19 | . . . . . . 19 . . . . . . . . . . . . . . . . . . . . . . . . . Slashing 98 | . . . . . . . 66 . . 13 . . . 8 . . . . . 1 . 9 . . . . . . . . 1 Piercing 42 | . . . . . . . . . . . . . . . . . . . . . . . . . . . . . . . 42 Sneak Attacks 24 | . . . . . 5 5 9 . 1 . 1 . . 1 . . . . . . . . . . . . . . . . 2 Combat Hostiles 1 | . . . . . . . . . . . . . . . . . . . . . . . . . . . . . . . 1 Follow-up Attacks 19 | . . . . . . . 18 . . . . . . . . . . . . . . . . . . . . . . . 1 Damage Inflicted 26811 | 52 . . 2171 215 . 567 2899 1229 1692 2243 843 612 70 1341 . 121 . 191 811 1287 1396 2393 208 199 . 176 757 343 386 545 4064 Guns 12614 | 52 . . 2079 215 . . 594 1013 1185 800 843 543 70 916 . 121 . 84 379 392 479 479 126 199 . 176 531 233 293 419 393 Cannons 4563 | . . . . . . 175 . . . . . 69 . 106 . . . 107 432 867 713 660 . . . . 226 110 93 126 879 Explosions 2902 | . . . 92 . . . 176 216 493 502 . . . . . . . . . . 204 152 82 . . . . . . . 985 Melee 6682 | . . . . . . 392 2121 . . 941 . . . 319 . . . . . . . 1102 . . . . . . . . 1807 Ramming 50 | . . . . . . . 8 . 14 . . . . . . . . . . 28 . . . . . . . . . . . Kinetic 9660 | . . . 297 184 . . . . 38 697 491 543 70 916 . 121 . 191 811 1259 834 917 22 64 . 27 757 343 386 503 189 Thermal 3201 | 26 . . 342 . . 175 176 216 159 255 352 69 . 106 . . . . . . 204 152 . . . . . . . . 969 Explosive 136 | . . . . . . . . . . . . . . . . . . . . . . . . . . . . . . . 136 Electromagnetic 7082 | 26 . . 1532 31 . . 594 1013 1481 350 . . . . . . . . . . 358 222 186 135 . 149 . . . 42 963 Impact 392 | . . . . . . 392 . . . . . . . . . . . . . . . . . . . . . . . . . Slashing 4523 | . . . . . . . 2121 . . 941 . . . 319 . . . . . . . 1102 . . . . . . . . 40 Piercing 1767 | . . . . . . . . . . . . . . . . . . . . . . . . . . . . . . . 1767 Highest Corruption 11 | . . . 5 5 5 5 . . 2 2 3 3 3 3 . . 1 1 1 7 5 8 8 8 . . . . 2 . 11 Average Corruption 4 | . . . 4 5 5 5 . . 1 2 2 3 3 3 . . 1 1 1 3 3 7 8 8 . . . . 1 . 6 Corruption Purged . | . . . . . . . . . . . . . . . . . . . . . . . . . . . . . . . . Effects 305 | . . . 48 28 9 15 . . . 10 1 13 10 15 . . . 2 4 13 11 42 18 24 . . . . 4 . 38 Message Errors 72 | . . . 13 5 3 1 . . . 3 . 3 4 4 . . . . 2 1 3 15 5 2 . . . . 1 . 7 Matter Fused 52 | . . . 6 4 . 6 . . . . . 3 1 4 . . . . . 1 3 8 4 6 . . . . . . 6 Heat Flow Errors 41 | . . . 4 6 1 1 . . . 3 . 1 1 2 . . . . . 5 2 2 3 5 . . . . 1 . 4 Energy Discharges 29 | . . . 3 3 1 2 . . . 1 . 4 1 2 . . . . . 1 1 4 1 3 . . . . . . 2 Parts Rejected 5 | . . . 1 1 . 1 . . . . . . . . . . . . . . . . . . . . . . . . 2 Data Loss (minor) 31 | . . . 3 3 2 . . . . 2 . . 3 1 . . . 1 1 2 1 4 2 . . . . . 1 . 5 Data Loss (major) 14 | . . . 6 . . 3 . . . . . . . . . . . . . . . 1 1 2 . . . . . . 1 Misfires 5 | . . . . 2 . . . . . . . . . . . . . . . . . 1 . 2 . . . . . . . Misdirections 3 | . . . . . . . . . . . . . . . . . . . . . . . . . . . . . . . 3 Targeting Errors 43 | . . . 11 3 2 1 . . . 1 . 2 . 1 . . . 1 1 2 1 6 2 3 . . . . . . 6 Weapon Failures 10 | . . . 1 1 . . . . . . 1 . . 1 . . . . . 1 . 1 . 1 . . . . 1 . 2 Overload Shots . | . . . . . . . . . . . . . . . . . . . . . . . . . . . . . . . . Overflow Damage 680 | . . . . . . 74 175 . 33 150 . . . 17 . . . . 10 22 95 17 . . . . . . . . 87 Projectiles 184 | . . . . . . . . . . . . . . 17 . . . . 10 22 84 . . . . . . . . . 51 Explosions 51 | . . . . . . . 5 . 33 . . . . . . . . . . . 11 . . . . . . . . . 2 Melee 445 | . . . . . . 74 170 . . 150 . . . . . . . . . . . 17 . . . . . . . . 34 Knockbacks 21 | . . . . . . 3 . . . . . . . . . . . . 2 8 3 5 . . . . . . . . . Impact 3 | . . . . . . 3 . . . . . . . . . . . . . . . . . . . . . . . . . Kinetic 17 | . . . . . . . . . . . . . . . . . . . 2 7 3 5 . . . . . . . . . Secondary 1 | . . . . . . . . . . . . . . . . . . . . 1 . . . . . . . . . . . Self-Inflicted Damage 522 | . . . 46 . . . 39 . 175 70 . . . . . . . . . 14 56 52 . . . . . . . . 70 Shots 17 | . . . 1 . . . 1 . 6 3 . . . . . . . . . . 1 1 . . . . . . . . 4 Rammed 3 | . . . . . . . . . 2 . . . . . . . . . . 1 . . . . . . . . . . . Targets Rammed 5 | . . . . . . . 1 . 3 . . . . . . . . . . 1 . . . . . . . . . . . Kicked . | . . . . . . . . . . . . . . . . . . . . . . . . . . . . . . . . Crushed 2 | . . . . . . . 1 . 1 . . . . . . . . . . . . . . . . . . . . . . Highest Temperature 390 | 60 . . 390 281 210 368 371 383 372 213 88 281 159 276 7 14 219 18 34 285 358 336 358 390 5 96 . 5 115 4 212 Average Temperature 95 | 30 . . 94 81 108 167 147 136 131 53 28 59 45 112 7 8 82 9 13 65 90 103 76 121 5 29 . 3 72 2 90 Received Heat Transfer 3529 | . . . 438 6 . 99 576 108 288 333 180 144 . 117 . . . 27 63 135 171 181 9 33 . 87 27 25 13 268 201 Effects 23 | . . . 4 . . 4 3 4 1 . . . . . . . . . . . . 1 1 5 . . . . . . . Shutdowns 4 | . . . 1 . . . . . . . . . . . . . . . . . . 1 . 2 . . . . . . . Energy Bleed 8 | . . . 3 . . 2 . . . . . . . . . . . . . . . . . 3 . . . . . . . Interference 9 | . . . . . . 2 3 4 . . . . . . . . . . . . . . . . . . . . . . . Matter Decay 1 | . . . . . . . . . 1 . . . . . . . . . . . . . . . . . . . . . . Short Circuit 1 | . . . . . . . . . . . . . . . . . . . . . . . 1 . . . . . . . . Siege Activations . | . . . . . . . . . . . . . . . . . . . . . . . . . . . . . . . . Robots Corrupted 15 | . . . . . . . 1 1 7 . . . . . . . . . . . 1 . . . . . . . . . 5 Combat Hostiles 14 | . . . . . . . 1 1 6 . . . . . . . . . . . 1 . . . . . . . . . 5 Parts Fried 39 | . . . 5 . . 2 3 7 7 . . . . . . . . . . . 1 . 4 . . . . . . . 10 Impact Corruptions 4 | . . . . . . 4 . . . . . . . . . . . . . . . . . . . . . . . . . Robots Melted . | . . . . . . . . . . . . . . . . . . . . . . . . . . . . . . . . Combat Hostiles . | . . . . . . . . . . . . . . . . . . . . . . . . . . . . . . . . Parts Melted 11 | . . . 1 . . . . . . . 2 2 . . . . . . . . . . . . . . . . . 1 5 Heat Transferred 4655 | 74 . . 853 . . 400 150 200 200 361 740 160 . 240 . . . . . . 100 50 . . . . . . . . 1127 Parts Sabotaged . | . . . . . . . . . . . . . . . . . . . . . . . . . . . . . . . . Parts Stolen . | . . . . . . . . . . . . . . . . . . . . . . . . . . . . . . . . Parts Stripped . | . . . . . . . . . . . . . . . . . . . . . . . . . . . . . . . . Power Chain Reactions 17 | . . . 2 . . . 1 3 5 2 . . . . . . . . . . 2 1 . . . . . . . . 1 Missiles Intercepted . | . . . . . . . . . . . . . . . . . . . . . . . . . . . . . . . . Alert | -11 -10 -10 -9 -9 -9 -8 -8 -8 -8 -8 -7 -7 -7 -7 -6 -6 -6 -6 -6 -6 -5 -5 -5 -5 -4 -4 -4 -4 -3 -2 -1 ------- Run | Scr Mat Min Mat Min Exi Min Mat Gar Mat Gar Fac Gar Fac Gar Fac Was Fac Gar Fac Gar Fac Gar Fac Gar Fac Gar Fac Gar Res Res Acc Peak Influence 1256 | 5 3 . 694 254 . 95 490 820 566 690 557 554 305 671 396 139 328 1024 1053 995 697 785 614 874 502 1256 702 1026 779 469 376 Initial 659 | . 3 . . 254 . . 3 318 399 203 361 254 290 25 352 138 . 135 537 494 522 430 411 289 458 351 659 411 576 411 96 Average 436 | 3 3 . 361 173 . 31 145 482 472 453 394 432 131 353 364 128 139 676 731 807 564 602 497 595 483 969 402 833 654 317 227 Maximum Alert Level 4 | . . . 2 1 . . 2 3 2 2 2 2 1 2 1 . 1 3 3 3 2 3 2 3 2 4 3 3 3 2 1 Low Security (%) 22 | 100 100 100 22 53 . 100 69 . 1 . . . 92 25 . 100 86 9 . . . . . . . . 38 . . 42 39 Level 1 22 | . . . 35 46 . . 25 33 16 40 66 44 7 33 100 . 13 18 . . . . . 17 . 10 9 . . 1 60 Level 2 40 | . . . 41 . . . 4 49 82 59 33 55 . 41 . . . 10 50 17 100 90 100 51 100 17 30 24 71 56 . Level 3 13 | . . . . . . . . 16 . . . . . . . . . 61 50 82 . 9 . 30 . 5 21 75 28 . . Level 4 1 | . . . . . . . . . . . . . . . . . . . . . . . . . . 65 . . . . . Level 5 . | . . . . . . . . . . . . . . . . . . . . . . . . . . . . . . . . High Security . | . . . . . . . . . . . . . . . . . . . . . . . . . . . . . . . . Max Security . | . . . . . . . . . . . . . . . . . . . . . . . . . . . . . . . . Squads Dispatched 47 | . . . 7 . . . 4 . 4 . 7 . 2 . . . 2 . 4 . 4 . 1 . . . 1 . 1 2 8 Investigation 13 | . . . 2 . . . 4 . . . 1 . . . . . 1 . . . 3 . . . . . . . . . 2 Extermination 5 | . . . . . . . . . . . 1 . . . . . . . . . . . 1 . . . . . 1 . 2 Reinforcement 19 | . . . 5 . . . . . 2 . 2 . 2 . . . 1 . 2 . . . . . . . . . . 2 3 Assault 2 | . . . . . . . . . 1 . . . . . . . . . 1 . . . . . . . . . . . . Garrison 8 | . . . . . . . . . 1 . 3 . . . . . . . 1 . 1 . . . . . 1 . . . 1 Intercept . | . . . . . . . . . . . . . . . . . . . . . . . . . . . . . . . . Construction Impeded 2 | . . . . . . . . . . . . . . . . . . . 1 . . . . . . . . . . . 1 Haulers Reinforced 1 | . . . . . . . . . . . . . . . . . . . . . . . . . . . . . . 1 . Stealth | -11 -10 -10 -9 -9 -9 -8 -8 -8 -8 -8 -7 -7 -7 -7 -6 -6 -6 -6 -6 -6 -5 -5 -5 -5 -4 -4 -4 -4 -3 -2 -1 --------- Run | Scr Mat Min Mat Min Exi Min Mat Gar Mat Gar Fac Gar Fac Gar Fac Was Fac Gar Fac Gar Fac Gar Fac Gar Fac Gar Fac Gar Res Res Acc Distress Signals 10 | . . . 3 . . . 4 . 1 . 1 . . . . . . . . . . . . . . . . . . 1 . Communications Jammed 204 | . . . . . . . . . . . 1 . . . . . . . 6 . . 2 . . . . 140 . 1 . 54 Distress Signals 200 | . . . . . . . . . . . 1 . . . . . . . 5 . . 2 . . . . 140 . 1 . 51 Times Spotted 495 | . . . 62 6 . 3 32 18 27 20 15 25 4 30 . 2 3 13 25 26 23 18 5 21 . 22 15 22 16 4 38 Peak Tracking Total 8 | . . . 6 3 . 3 6 5 8 8 4 8 1 6 . 1 2 5 5 5 5 6 2 5 . 5 3 4 4 1 7 Tactical Retreats 29 | . . . 7 . . . 4 2 . 3 . 1 . 8 . . . . . 2 1 . . . . . . 1 . . . Traps | -11 -10 -10 -9 -9 -9 -8 -8 -8 -8 -8 -7 -7 -7 -7 -6 -6 -6 -6 -6 -6 -5 -5 -5 -5 -4 -4 -4 -4 -3 -2 -1 ------- Run | Scr Mat Min Mat Min Exi Min Mat Gar Mat Gar Fac Gar Fac Gar Fac Was Fac Gar Fac Gar Fac Gar Fac Gar Fac Gar Fac Gar Res Res Acc Traps Triggered 34 | . . . 2 . . . 1 3 . . 1 5 . . 1 . . 1 2 8 . 2 . 3 . 1 1 2 1 . . Indirectly . | . . . . . . . . . . . . . . . . . . . . . . . . . . . . . . . . Trap Hack Attempts . | . . . . . . . . . . . . . . . . . . . . . . . . . . . . . . . . Triggered . | . . . . . . . . . . . . . . . . . . . . . . . . . . . . . . . . Disarmed 3 | . . . . . . . . . . . . . . . . . . . . . . . . . 3 . . . . . . Reprogrammed . | . . . . . . . . . . . . . . . . . . . . . . . . . . . . . . . . Reused . | . . . . . . . . . . . . . . . . . . . . . . . . . . . . . . . . Traps Extracted . | . . . . . . . . . . . . . . . . . . . . . . . . . . . . . . . . Installed 1 | . . . . . . . . . . . . . . 1 . . . . . . . . . . . . . . . . . Triggered 1 | . . . . . . . . . . . . . . . . . . . . . . 1 . . . . . . . . . Machines | -11 -10 -10 -9 -9 -9 -8 -8 -8 -8 -8 -7 -7 -7 -7 -6 -6 -6 -6 -6 -6 -5 -5 -5 -5 -4 -4 -4 -4 -3 -2 -1 ---------- Run | Scr Mat Min Mat Min Exi Min Mat Gar Mat Gar Fac Gar Fac Gar Fac Was Fac Gar Fac Gar Fac Gar Fac Gar Fac Gar Fac Gar Res Res Acc Machines Disabled 52 | . . . . 2 . 1 . 2 3 2 . 3 . 4 . . . 2 3 4 2 3 2 5 . 2 7 3 . . 2 Max in Single Turn 2 | . . . . 1 . 1 . 1 1 1 . 1 . 2 . . . 1 1 1 2 1 1 1 . 1 . 1 . . 1 Garrison Access 1 | . . . . . . . . . . . . . . . . . . . 1 . . . . . . . . . . . . Garrison Relay 27 | . . . . . . . . 2 . 2 . 3 . 2 . . . 2 . 4 . 3 . 4 . 2 . 3 . . . Phase Generator 1 | . . . . . . . . . . . . . . 1 . . . . . . . . . . . . . . . . . Machines Sabotaged . | . . . . . . . . . . . . . . . . . . . . . . . . . . . . . . . . Garrisons Compromised . | . . . . . . . . . . . . . . . . . . . . . . . . . . . . . . . . Overloaded Fab Kills . | . . . . . . . . . . . . . . . . . . . . . . . . . . . . . . . . Fab Network Shutdowns . | . . . . . . . . . . . . . . . . . . . . . . . . . . . . . . . . Hacking | -11 -10 -10 -9 -9 -9 -8 -8 -8 -8 -8 -7 -7 -7 -7 -6 -6 -6 -6 -6 -6 -5 -5 -5 -5 -4 -4 -4 -4 -3 -2 -1 --------- Run | Scr Mat Min Mat Min Exi Min Mat Gar Mat Gar Fac Gar Fac Gar Fac Was Fac Gar Fac Gar Fac Gar Fac Gar Fac Gar Fac Gar Res Res Acc Machines Accessed 88 | . . . 8 1 2 . 12 . 6 . 3 . 7 . 1 . 3 . 9 . 5 . 5 . 4 . 8 . 7 1 6 Terminals 51 | . . . 5 1 . . 6 . 3 . 1 . 4 . 1 . 2 . 6 . 3 . 2 . 2 . 5 . 6 . 4 Fabricators 6 | . . . . . . . . . . . . . 1 . . . . . . . . . 1 . 1 . . . 1 1 1 Repair Stations 5 | . . . 1 . . . 2 . . . 1 . . . . . . . . . . . 1 . . . . . . . . Recycling Units 6 | . . . 1 . . . 1 . 1 . . . 1 . . . . . 1 . 1 . . . . . . . . . . Scanalyzers 5 | . . . 1 . . . 2 . 1 . . . . . . . . . . . . . . . . . 1 . . . . Garrison Access 13 | . . . . . . . 1 . 1 . 1 . 1 . . . 1 . 2 . 1 . 1 . 1 . 2 . . . 1 Total Hacks 223 | . . . 27 4 2 . 32 . 20 . 7 . 18 . 3 . 8 . 22 . 12 . 14 . 9 . 20 . 10 1 14 Successful 108 | . . . 15 1 2 . 20 . 10 . 3 . 8 . 3 . 6 . 12 . 4 . 8 . 3 . 7 . 3 . 3 Failed 114 | . . . 11 3 . . 12 . 10 . 4 . 10 . . . 2 . 10 . 8 . 6 . 6 . 13 . 7 1 11 Catastrophic 17 | . . . 1 1 . . 1 . 1 . . . . . . . . . 2 . 2 . 1 . 1 . 1 . 4 . 2 Database Lockouts 1 | . . . 1 . . . . . . . . . . . . . . . . . . . . . . . . . . . . Manual 90 | . . . 11 4 1 . 12 . 6 . . . 7 . 2 . 5 . 10 . 3 . 8 . 7 . 10 . 2 . 2 Terminals 141 | . . . 15 4 . . 18 . 12 . 4 . 11 . 3 . 7 . 16 . 8 . 7 . 6 . 12 . 9 . 9 Fabricators 11 | . . . . . . . . . . . . . 3 . . . . . . . . . 2 . 1 . . . 1 1 3 Repair Stations 13 | . . . 6 . . . 3 . . . 2 . . . . . . . . . . . 2 . . . . . . . . Recycling Units 12 | . . . 2 . . . 2 . 1 . . . 3 . . . . . 1 . 3 . . . . . . . . . . Scanalyzers 19 | . . . 4 . . . 8 . 3 . . . . . . . . . . . . . . . . . 4 . . . . Garrison Access 25 | . . . . . . . 1 . 4 . 1 . 1 . . . 1 . 5 . 1 . 3 . 2 . 4 . . . 2 Terminal Hacks 34 | . . . 5 1 2 . 4 . 2 . 1 . . . 1 . 4 . 7 . 1 . . . 1 . 2 . 2 . 1 Record 1 | . . . . . 1 . . . . . . . . . . . . . . . . . . . . . . . . . . Part Schematic 3 | . . . . 1 . . . . . . . . . . . . 1 . 1 . . . . . . . . . . . . Robot Schematic 2 | . . . 1 . . . . . . . . . . . . . 1 . . . . . . . . . . . . . . Robot Analysis 1 | . . . 1 . . . . . . . . . . . . . . . . . . . . . . . . . . . . Prototype ID Bank 3 | . . . . . . . 3 . . . . . . . . . . . . . . . . . . . . . . . . Branch Access Points 1 | . . . 1 . . . . . . . . . . . . . . . . . . . . . . . . . . . . Terminal Index 6 | . . . . . . . . . . . . . . . 1 . 1 . 1 . 1 . . . . . . . 1 . 1 Garrison Index 1 | . . . . . . . . . . . . . . . . . . . . . . . . . . . 1 . . . . Unreport Threat 5 | . . . . . . . . . 2 . . . . . . . 1 . 2 . . . . . . . . . . . . Locate Traps 5 | . . . 2 . . . . . . . 1 . . . . . . . . . . . . . . . 1 . 1 . . Disarm Traps 1 | . . . . . . . . . . . . . . . . . . . . . . . . . 1 . . . . . . Maintenance Status 1 | . . . . . . . . . . . . . . . . . . . 1 . . . . . . . . . . . . Hauler Manifests 1 | . . . . . . . 1 . . . . . . . . . . . . . . . . . . . . . . . . Zone Layout 2 | . . . . . . . . . . . . . . . . . . . 2 . . . . . . . . . . . . EX-Prototype ID Bank 1 | . . . . . 1 . . . . . . . . . . . . . . . . . . . . . . . . . . Fabricator Hacks 6 | . . . . . . . . . . . . . 2 . . . . . . . . . 2 . . . . . . . 2 Load Schematic 3 | . . . . . . . . . . . . . 1 . . . . . . . . . 1 . . . . . . . 1 Build 3 | . . . . . . . . . . . . . 1 . . . . . . . . . 1 . . . . . . . 1 Repair Station Hacks 8 | . . . 4 . . . 1 . . . 1 . . . . . . . . . . . 2 . . . . . . . . Scan Component 5 | . . . 2 . . . 1 . . . 1 . . . . . . . . . . . 1 . . . . . . . . Repair 3 | . . . 2 . . . . . . . . . . . . . . . . . . . 1 . . . . . . . . Recycling Unit Hacks 7 | . . . 1 . . . . . 1 . . . 3 . . . . . 1 . 1 . . . . . . . . . . Process 1 | . . . . . . . . . . . . . 1 . . . . . . . . . . . . . . . . . . Report Inventory 5 | . . . 1 . . . . . 1 . . . 1 . . . . . 1 . 1 . . . . . . . . . . Retrieve Matter 1 | . . . . . . . . . . . . . 1 . . . . . . . . . . . . . . . . . . Scanalyzer 16 | . . . 4 . . . 8 . 3 . . . . . . . . . . . . . . . . . 1 . . . . Insert Component 9 | . . . 2 . . . 4 . 2 . . . . . . . . . . . . . . . . . 1 . . . . Analyze 7 | . . . 2 . . . 4 . 1 . . . . . . . . . . . . . . . . . . . . . . Garrison Access Hacks 12 | . . . . . . . 1 . 1 . 1 . 1 . . . 1 . 2 . 1 . 1 . 1 . 2 . . . . Unlock Access 12 | . . . . . . . 1 . 1 . 1 . 1 . . . 1 . 2 . 1 . 1 . 1 . 2 . . . . Unauthorized Hacks 25 | . . . 1 . . . 6 . 3 . . . 2 . 2 . 1 . 2 . 1 . 3 . 1 . 2 . 1 . . Terminals 21 | . . . . . . . 5 . 3 . . . 2 . 2 . 1 . 2 . 1 . 2 . 1 . 1 . 1 . . Track 2 | . . . . . . . 2 . . . . . . . . . . . . . . . . . . . . . . . . Assimilate 1 | . . . . . . . . . . . . . . . . . . . . . . . 1 . . . . . . . . Botnet 12 | . . . . . . . 1 . 1 . . . 1 . 1 . 1 . 2 . 1 . 1 . 1 . 1 . 1 . . Disrupt 2 | . . . . . . . 1 . 1 . . . . . . . . . . . . . . . . . . . . . . Operators 4 | . . . . . . . 1 . 1 . . . 1 . 1 . . . . . . . . . . . . . . . . Fabricators . | . . . . . . . . . . . . . . . . . . . . . . . . . . . . . . . . Repair Stations . | . . . . . . . . . . . . . . . . . . . . . . . . . . . . . . . . Recycling Units 2 | . . . 1 . . . 1 . . . . . . . . . . . . . . . . . . . . . . . . Tunnel 2 | . . . 1 . . . 1 . . . . . . . . . . . . . . . . . . . . . . . . Scanalyzers . | . . . . . . . . . . . . . . . . . . . . . . . . . . . . . . . . Garrison Access 2 | . . . . . . . . . . . . . . . . . . . . . . . 1 . . . 1 . . . . Reprogram 2 | . . . . . . . . . . . . . . . . . . . . . . . 1 . . . 1 . . . . Data Cores Recovered 3 | . . . . . . . . . . . . . . . . . . . . . . . . . 1 . 1 . . . 1 Used 2 | . . . . . . . . . . . . . . . . . . . . . . . . . 1 . . . . . 1 Hacking Detections 79 | . . . 7 1 . . 12 . 5 . 2 . 6 . 1 . 2 . 8 . 4 . 5 . 4 . 8 . 7 1 6 Full Trace Events 11 | . . . 2 . . . 2 . . . 1 . . . . . 1 . . . 3 . . . . . . . . . 2 Feedback Events 2 | . . . 1 . . . . . . . . . . . . . 1 . . . . . . . . . . . . . . Corruption 2 | . . . 1 . . . . . . . . . . . . . 1 . . . . . . . . . . . . . . Feedback Blocked . | . . . . . . . . . . . . . . . . . . . . . . . . . . . . . . . . Robot Schematics Acquired 2 | . . . 1 . . . . . . . . . . . . . 1 . . . . . . . . . . . . . . Robots Built 2 | . . . . . . . . . . . . . 1 . . . . . . . . . . . . . . . . . 1 Matter 306 | . . . . . . . . . . . . . 153 . . . . . . . . . . . . . . . . . 153 Time 108 | . . . . . . . . . . . . . 81 . . . . . . . . . . . . . . . . . 27 Total Robot Build Rating 2 | . . . . . . . . . . . . . 1 . . . . . . . . . . . . . . . . . 1 Part Schematics Acquired 10 | . . . 2 1 . . 4 . 1 . . . . . . . 1 . 1 . . . . . . . . . . . . Parts Built 2 | . . . . . . . . . . . . . . . . . . . . . . . 2 . . . . . . . . Matter 168 | . . . . . . . . . . . . . . . . . . . . . . . 168 . . . . . . . . Time 84 | . . . . . . . . . . . . . . . . . . . . . . . 84 . . . . . . . . Total Part Build Rating 8 | . . . . . . . . . . . . . . . . . . . . . . . 8 . . . . . . . . Parts Repaired 3 | . . . 2 . . . . . . . . . . . . . . . . . . . 1 . . . . . . . . Time 126 | . . . 70 . . . . . . . . . . . . . . . . . . . 56 . . . . . . . . Parts Recycled . | . . . . . . . . . . . . . . . . . . . . . . . . . . . . . . . . Recycled Matter 18 | . . . . . . . . . . . . . 18 . . . . . . . . . . . . . . . . . . Retrieved Matter 18 | . . . . . . . . . . . . . 18 . . . . . . . . . . . . . . . . . . Retrieved Components . | . . . . . . . . . . . . . . . . . . . . . . . . . . . . . . . . Parts Scanalyzed 8 | . . . 2 . . . 4 . 1 . . . . . . . . . . . . . . . . . 1 . . . . Part Schematics Acquired 7 | . . . 2 . . . 4 . 1 . . . . . . . . . . . . . . . . . . . . . . Parts Damaged 2 | . . . . . . . 1 . 1 . . . . . . . . . . . . . . . . . . . . . . Bothacking | -11 -10 -10 -9 -9 -9 -8 -8 -8 -8 -8 -7 -7 -7 -7 -6 -6 -6 -6 -6 -6 -5 -5 -5 -5 -4 -4 -4 -4 -3 -2 -1 ------------ Run | Scr Mat Min Mat Min Exi Min Mat Gar Mat Gar Fac Gar Fac Gar Fac Was Fac Gar Fac Gar Fac Gar Fac Gar Fac Gar Fac Gar Res Res Acc Used RIF Installer 10 | . . . . . . . . 1 . 1 . 1 . 1 . . . 1 . 1 . 1 . 1 . 1 . 1 . . . Command Fork 1 | . . . . . . . . . . . . 1 . . . . . . . . . . . . . . . . . . . Threat Obfuscator 1 | . . . . . . . . . . . . . . . . . . . . . . . . . . . . 1 . . . Signal Jammer 1 | . . . . . . . . . . 1 . . . . . . . . . . . . . . . . . . . . . Zone Cloak 1 | . . . . . . . . . . . . . . . . . . 1 . . . . . . . . . . . . . Patrol Navigation 1 | . . . . . . . . . . . . . . . . . . . . . . . . 1 . . . . . . . Structural Interface 1 | . . . . . . . . . . . . . . . . . . . . 1 . . . . . . . . . . . Program Shield 1 | . . . . . . . . . . . . . . . . . . . . . . . . . . 1 . . . . . Autooverride 2 | . . . . . . . . . . . . . . 1 . . . . . . . 1 . . . . . . . . . Robots Hacked 205 | . . . . . 5 . . . 1 . 6 13 9 10 1 1 4 4 26 9 13 7 8 15 2 15 8 11 19 5 13 Non-combat 77 | . . . . . 4 . . . 1 . 2 . 9 . 1 . 3 . 17 . 7 . 6 . 1 . 5 . 9 4 8 Combat 128 | . . . . . 1 . . . . . 4 13 . 10 . 1 1 4 9 9 6 7 2 15 1 15 3 11 10 1 5 Autooverrided 30 | . . . . . . . . . . . . . . 1 . . . 2 1 5 1 3 1 3 1 4 . 4 1 1 2 Robot Hacks Applied 226 | . . . . . 5 . . . 1 . 7 14 15 10 1 2 4 2 34 5 16 4 10 12 1 11 16 8 24 9 15 parse_system 15 | . . . . . 5 . . . . . . 1 . 1 . 1 . . 1 . 1 1 . . . . 1 1 2 . . no_distress 3 | . . . . . . . . . . . . . . . . . . . 1 . . . 1 . . . 1 . . . . generate_echo 3 | . . . . . . . . . . . . . . . . . . . 2 . . . . . . . 1 . . . . find_chute 1 | . . . . . . . . . . . . . . . . . . . . . 1 . . . . . . . . . . deconstruct_machine 4 | . . . . . . . . . . . . . 1 . . . . . . . 1 . 1 . . . . . . 1 . ignore_repairs 1 | . . . . . . . . . . . . . . . . . . . 1 . . . . . . . . . . . . map_walls 26 | . . . . . . . . . . . 1 . 4 . . . 1 . 7 . 2 . . . . . 1 . 6 2 2 map_earth 6 | . . . . . . . . . 1 . . . . . 1 . . . 1 . 1 . 1 . . . . . 1 . . find_fabricator 10 | . . . . . . . . . . . . . . . . . . . 3 . . . 2 . . . 2 . 2 1 . drop_inventory 11 | . . . . . . . . . . . . . . . . . . . 3 . . . 3 . . . 2 . 2 1 . locate_stockpiles 2 | . . . . . . . . . . . . . . . . . . . 1 . . . . . . . . . 1 . . find_recycling 8 | . . . . . . . . . . . . . 2 . . . 1 . 1 . 1 . 1 . 1 . . . . . 1 ignore_parts 1 | . . . . . . . . . . . . . . . . . . . . . . . . . . . . . . . 1 deconstruct_bot 1 | . . . . . . . . . . . . . . . . . . . . . . . . . . . . . . . 1 check_alert 1 | . . . . . . . . . . . . . 1 . . . . . . . . . . . . . . . . . . purge_threat 9 | . . . . . . . . . . . . . 1 . . . . . 2 . . . . . . . 4 . . 2 . find_terminals 1 | . . . . . . . . . . . . . . . . . . . . . . . . . . . . . . 1 . locate_traps 5 | . . . . . . . . . . . . . 2 . . . . . . . . . . . . . 1 . . 1 1 reprogram_traps 1 | . . . . . . . . . . . . . . . . . . . 1 . . . . . . . . . . . . block_reporting 2 | . . . . . . . . . . . . . . . . . . . . . . . . . . . 1 . . . 1 summon_haulers 1 | . . . . . . . . . . . . . . . . . . . . . . . . . . . . . . . 1 map_route 6 | . . . . . . . . . . . . . 2 . . . . . 1 . . . . . . . . . 1 . 2 mark_security 6 | . . . . . . . . . . . 1 . 2 . . . . . 1 . . . . . . . . . 1 . 1 relay_feed 1 | . . . . . . . . . . . . . . . . . . . . . 1 . . . . . . . . . . ignore_targets 1 | . . . . . . . . . . . . . . . . 1 . . . . . . . . . . . . . . . link_fov 1 | . . . . . . . . . . . . . . . . . . . . . . . . . . . . . . . 1 scatter_targeting 4 | . . . . . . . . . . . . . . . . . . . 3 . . . . . . 1 . . . . . spike_heat 2 | . . . . . . . . . . . 1 . . . . . . . . . 1 . . . . . . . . . . overload_power 1 | . . . . . . . . . . . 1 . . . . . . . . . . . . . . . . . . . . disable_weapons 5 | . . . . . . . . . . . . . . 3 . . . 1 1 . . . . . . . . . . . . reboot_system 9 | . . . . . . . . . . . . 1 . . . . . . . . . . . 2 . 1 . 1 1 . 3 go_dormant 1 | . . . . . . . . . . . . . . . . . . . . . . . . . . 1 . . . . . overwrite_iff 27 | . . . . . . . . . . . . 10 . 3 . . 1 . 2 4 3 1 . 2 . 1 . . . . . streamctrl_high 3 | . . . . . . . . . . . . 1 . . . . 1 . . . . 1 . . . . . . . . . formatsys_high 47 | . . . . . . . . . . . 3 1 . 3 . . . 1 2 1 4 1 1 8 . 7 2 6 7 . . Relay Couplers Released 115 | . . . . . . . . 8 . 8 . 12 . 9 . . . 8 2 15 . 12 . 18 . 10 . 13 . . . Machine Destruction 115 | . . . . . . . . 8 . 8 . 12 . 9 . . . 8 2 15 . 12 . 18 . 10 . 13 . . . Attached 67 | . . . . . . . . . 1 . 2 5 2 4 . 1 . 2 4 6 5 7 1 8 . 5 1 7 3 2 1 Robots Rewired 1 | . . . 1 . . . . . . . . . . . . . . . . . . . . . . . . . . . . Allies Hacked 2 | . . . . . . . . . . . . . . . . . . . . 1 . 1 . . . . . . . . . Hacks Repelled . | . . . . . . . . . . . . . . . . . . . . . . . . . . . . . . . . Allies | -11 -10 -10 -9 -9 -9 -8 -8 -8 -8 -8 -7 -7 -7 -7 -6 -6 -6 -6 -6 -6 -5 -5 -5 -5 -4 -4 -4 -4 -3 -2 -1 -------- Run | Scr Mat Min Mat Min Exi Min Mat Gar Mat Gar Fac Gar Fac Gar Fac Was Fac Gar Fac Gar Fac Gar Fac Gar Fac Gar Fac Gar Res Res Acc Total Allies 151 | . . . 1 2 . . . . . . 3 15 1 8 . 20 2 3 7 9 7 6 5 17 1 16 3 12 9 1 3 Largest Group 20 | . . . 1 2 2 . . . . . 2 3 1 4 . 20 20 18 10 6 3 3 4 16 13 17 17 9 7 7 4 Highest-Rated Group 791 | . . . 15 47 47 . . . . . 32 48 11 59 . 777 791 750 427 234 99 99 167 506 430 602 710 420 317 299 192 Highest-Rated Ally 81 | . . . 15 31 31 . . . . . 32 16 11 32 . 46 47 81 47 47 49 49 54 72 49 49 49 49 64 64 69 Total Orders 9 | . . . . . 1 . . . . . . . 2 3 . . . . . . . . . . . . . . . . 3 STAY 2 | . . . . . . . . . . . . . . 2 . . . . . . . . . . . . . . . . . FOLLOW 2 | . . . . . . . . . . . . . 1 . . . . . . . . . . . . . . . . . 1 AID 4 | . . . . . . . . . . . . . 1 1 . . . . . . . . . . . . . . . . 2 RETURN 1 | . . . . . 1 . . . . . . . . . . . . . . . . . . . . . . . . . . Ally Attacks 972 | . . . 2 4 . . . . . . 11 35 . 25 . 16 43 106 89 84 20 20 6 71 14 110 59 84 66 53 54 Total Damage 24481 | . . . 60 84 . . . . . . 210 408 . 617 . 360 1171 2593 2413 1743 579 458 248 1767 258 2686 1681 2444 1513 1376 1812 Kills 161 | . . . . . . . . . . . 3 3 . 3 . 2 9 21 20 9 3 3 2 10 2 22 17 14 8 6 4 Allies Corrupted 9 | . . . . . . . . . . . . . . . . . . . 1 . . 1 . . . . . 1 5 . 1 Allies Melted 1 | . . . . . . . . . . . . . . . . . . . . . 1 . . . . . . . . . . Intel | -11 -10 -10 -9 -9 -9 -8 -8 -8 -8 -8 -7 -7 -7 -7 -6 -6 -6 -6 -6 -6 -5 -5 -5 -5 -4 -4 -4 -4 -3 -2 -1 ------- Run | Scr Mat Min Mat Min Exi Min Mat Gar Mat Gar Fac Gar Fac Gar Fac Was Fac Gar Fac Gar Fac Gar Fac Gar Fac Gar Fac Gar Res Res Acc Robot Analysis Total 1 | . . . 1 . . . . . . . . . . . . . . . . . . . . . . . . . . . . Derelict Logs Recovered 3 | . . . . 3 . . . . . . . . . . . . . . . . . . . . . . . . . . . Drone Launches 1 | . . . . . 1 . . . . . . . . . . . . . . . . . . . . . . . . . . Drone Recoveries 1 | . . . . . 1 . . . . . . . . . . . . . . . . . . . . . . . . . . Exploration | -11 -10 -10 -9 -9 -9 -8 -8 -8 -8 -8 -7 -7 -7 -7 -6 -6 -6 -6 -6 -6 -5 -5 -5 -5 -4 -4 -4 -4 -3 -2 -1 ------------- Run | Scr Mat Min Mat Min Exi Min Mat Gar Mat Gar Fac Gar Fac Gar Fac Was Fac Gar Fac Gar Fac Gar Fac Gar Fac Gar Fac Gar Res Res Acc Turns Passed 21696 | 122 55 112 2296 975 482 628 1006 2333 920 893 637 643 605 707 72 414 143 344 866 667 597 1051 473 666 150 479 584 725 662 350 1039 Spaces Moved 14174 | 65 35 71 1050 511 284 233 468 448 434 565 334 571 603 672 89 472 155 306 971 581 401 665 446 610 163 469 517 504 655 248 578 Core 4 | 3 . . . . . . . . . . . . . . . . . . . . . . . . . . . . 1 . . Treads 3836 | 62 35 71 1050 511 284 233 468 284 356 222 . . . . . . . . . . 16 244 . . . . . . . . . Legs 1124 | . . . . . . . . 164 78 . . . . . . . . . . . 91 59 . . . . . . . 154 578 Wheels . | . . . . . . . . . . . . . . . . . . . . . . . . . . . . . . . . Hover 9210 | . . . . . . . . . . 343 334 571 603 672 89 472 155 306 971 581 294 362 446 610 163 469 517 504 654 94 . Flight . | . . . . . . . . . . . . . . . . . . . . . . . . . . . . . . . . Fastest Speed 50 | 50 160 160 160 180 160 160 155 150 150 72 72 72 72 72 72 72 72 72 72 65 65 58 72 72 72 72 72 72 68 68 100 Average Speed 103 | 154 160 160 167 180 160 177 156 162 158 107 72 72 72 72 72 72 72 72 72 70 97 114 77 72 72 72 85 111 80 88 100 Slowest Speed 1200 | 160 160 160 180 200 160 180 180 270 180 260 146 131 72 72 72 72 72 72 72 142 210 190 146 72 72 72 142 142 1200 180 130 Overloaded Moves . | . . . . . . . . . . . . . . . . . . . . . . . . . . . . . . . . Propulsion Burnouts . | . . . . . . . . . . . . . . . . . . . . . . . . . . . . . . . . Robots Hopped 4 | . . . . . . . . . . . . . . . . . . . . . . . . . . . . 4 . . . Cave-ins Triggered . | . . . . . . . . . . . . . . . . . . . . . . . . . . . . . . . . Exploration Rate (%) 42 | 6 8 17 74 91 69 44 47 66 43 55 7 71 17 59 4 96 7 47 32 70 15 71 12 92 4 61 18 84 27 10 23 Regions Visited 31 Branch Regions 4 Pre-discovered Areas 4 | . . . 1 1 1 . 1 . . . . . . . . . . . . . . . . . . . . . . . . Known Exits Taken 11 | . . . 1 . . . 1 . 1 . 1 . 1 . . . 1 . 1 . 1 . 1 . 1 . 1 . . . . Unknown Exits Taken 8 | 1 1 1 . 1 1 1 . . . . . . . . . . . . . . . . . . . . . . 1 1 . Scrap Searched 1 | . . . . 1 . . . . . . . . . . . . . . . . . . . . . . . . . . . Spaces Dug 8 | . . . . . . . 1 . . 1 . . . . . . . . . . . . . . . . 3 . . . 3 Terrain Destroyed 219 | . . . 12 . . . 9 8 17 13 . 2 . 79 . . . 1 3 4 15 4 . . . . 10 . 5 . 37 Melee 2 | . . . . . . . 1 . . 1 . . . . . . . . . . . . . . . . . . . . . Projectile 50 | . . . . . . . . . . . . 2 . 5 . . . 1 3 4 10 3 . . . . 10 . 5 . 7 AOE 167 | . . . 12 . . . 8 8 17 12 . . . 74 . . . . . . 5 1 . . . . . . . . 30 Terrain Rammed . | . . . . . . . . . . . . . . . . . . . . . . . . . . . . . . . . Walls Destroyed . | . . . . . . . . . . . . . . . . . . . . . . . . . . . . . . . . Machines Disabled . | . . . . . . . . . . . . . . . . . . . . . . . . . . . . . . . . Actions | -11 -10 -10 -9 -9 -9 -8 -8 -8 -8 -8 -7 -7 -7 -7 -6 -6 -6 -6 -6 -6 -5 -5 -5 -5 -4 -4 -4 -4 -3 -2 -1 --------- Run | Scr Mat Min Mat Min Exi Min Mat Gar Mat Gar Fac Gar Fac Gar Fac Was Fac Gar Fac Gar Fac Gar Fac Gar Fac Gar Fac Gar Res Res Acc Total 19702 | 79 34 70 1410 541 309 415 636 1971 594 778 652 746 757 797 96 540 183 412 1081 772 551 890 561 803 195 586 609 646 761 342 885 Wait 3298 | . . . 194 5 7 158 57 1455 48 128 233 30 123 42 . 42 19 72 20 18 34 71 65 113 24 54 25 73 33 24 131 Move 14133 | 64 34 70 1049 510 283 232 467 446 433 563 334 569 602 670 89 471 155 304 971 579 401 663 445 608 163 468 517 495 654 247 577 Hop 3 | . . . . . . . . . . . . . . . . . . . . . . . . . . . . 3 . . . Pick Up 182 | 6 . . 19 5 2 . 13 5 4 9 6 12 3 7 . 3 . 4 3 13 9 19 5 3 1 3 2 4 9 6 7 Fast Attach 139 | 7 . . 8 1 2 . 7 2 7 7 7 5 . . 3 5 2 . 1 2 12 10 8 1 1 2 5 2 4 12 16 Attach 99 | . . . 3 1 3 1 3 3 8 4 6 4 1 4 . . . . 5 7 14 10 3 1 1 1 1 . 4 4 7 Detach 25 | . . . . . 1 . 1 . 2 . . 2 . 1 . 1 . . . 3 7 3 1 . . 1 . . . . 2 Swap 183 | . . . 12 3 . . 13 1 22 5 4 6 3 8 1 2 . 2 2 8 1 24 3 10 2 8 6 14 6 8 9 Drop 252 | . . . 26 5 6 . 15 4 25 13 4 14 2 2 2 8 2 3 3 10 9 34 11 5 2 4 4 7 9 14 9 Fire 967 | 2 . . 96 11 . 5 15 49 40 36 45 52 23 54 1 8 5 14 63 49 63 39 20 32 1 23 49 18 42 27 85 Melee 156 | . . . . . 5 19 44 . 2 13 13 . . 8 . . . . . 1 . 9 . . . . . . . . 42 Ram 1 | . . . . . . . . . . . . . . . . . . . . 1 . . . . . . . . . . . Kick . | . . . . . . . . . . . . . . . . . . . . . . . . . . . . . . . . Crush 4 | . . . . . . . 1 . 3 . . . . . . . . . . . . . . . . . . . . . . Escape Stasis 255 | . . . . . . . . 6 . . . 52 . . . . . 13 13 81 . 8 . 30 . 22 . 30 . . . Rewire 4 | . . . 3 . . . . . . . . . . . . . . . . . 1 . . . . . . . . . . Trap 1 | . . . . . . . . . . . . . . 1 . . . . . . . . . . . . . . . . . Miscellaneous . | . . . . . . . . . . . . . . . . . . . . . . . . . . . . . . . . Route ------- -11/Scrapyard -10/Materials -10/Mines -9/Materials (discovered 6 exits: *Mat x2 / *Min x2 / *Sto x2) -9/Mines (discovered 4 exits: *Mat x2 / *Exi / [*Zio]) -9/Exiles (discovered 2 exits: [*Min x2]) -8/Mines -8/Materials -8/Garrison (discovered 2 exits: *Mat x2) -8/Materials (discovered 3 exits: *Fac x2 / Gar) -8/Garrison (discovered 2 exits: *Fac x2) -7/Factory -7/Garrison (discovered 3 exits: *Fac x3) -7/Factory -7/Garrison -6/Factory -6/Waste -6/Factory -6/Garrison -6/Factory (discovered 3 exits: *Fac / [*Ext] / Gar) -6/Garrison (discovered 3 exits: *Fac x3) -5/Factory (discovered 2 exits: [*Upp] / Gar) -5/Garrison (discovered 2 exits: *Fac x2) -5/Factory (discovered 3 exits: *Fac / [*Upp] / Gar) -5/Garrison (discovered 3 exits: *Fac x3) -4/Factory -4/Garrison -4/Factory (discovered 2 exits: Gar / Gar) -4/Garrison (discovered 2 exits: *Res x2) -3/Research -2/Research -1/Access To Epsilon Eridani History --------- Turn | Location | Event 25 | -11/Scrapyard | Discovered new exit (range 16) 123 | -11/Scrapyard | Entered Materials 128 | -10/Materials | Discovered new exit (range 3) 178 | -10/Materials | Entered Mines 230 | -10/Mines | Discovered new exit (range 8) 290 | -10/Mines | Entered Materials 290 | -9/Materials | Evolved 2 slots: Utility x1, Weapon x1 362 | -9/Materials | Discovered new exit (range 7) 921 | -9/Materials | Discovered new exit (range 13) 957 | -9/Materials | Identified exit to Mines 957 | -9/Materials | Identified exit to Storage 985 | -9/Materials | Build established: Tank 1413 | -9/Materials | Repaired Reactive Plating 1447 | -9/Materials | Repaired Imp. Ion Engine 1741 | -9/Materials | Build established: Scavenger-Tank 1757 | -9/Materials | Discovered new exit (range 15) 2244 | -9/Materials | Central database locked down 2586 | -9/Materials | Entered Mines 2671 | -9/Mines | Found a hidden stash of uninstalled traps 2871 | -9/Mines | Learned 2 Materials zone layouts 2874 | -9/Mines | A Derelict revealed a hidden shortcut to a safe place 3035 | -9/Mines | Discovered new exit (range 6) 3247 | -9/Mines | Discovered new exit (range 16) 3253 | -9/Mines | Learned location of Storage (-9) 3421 | -9/Mines | Learned 2 Materials zone layouts 3549 | -9/Mines | Deemed a non-threat by the Exiles lab entrance 3551 | -9/Mines | Discovered new exit (range 5) 3561 | -9/Mines | Entered Exiles 3561 | -9/Exiles | Accompanied by 2 allies 3587 | -9/Exiles | Discovered new exit (range 15) 3591 | -9/Exiles | Led the pair of lost Derelicts to a safe place 3606 | -9/Exiles | Met 8R-AWN 3633 | -9/Exiles | Met EX-HEX 3694 | -9/Exiles | Met EX-DEC 3740 | -9/Exiles | Learned location of Zion (-7) 3780 | -9/Exiles | Met EX-BIN 3809 | -9/Exiles | Aligned with FarCom system 3811 | -9/Exiles | Given EX-Vault access code 3849 | -9/Exiles | Opened EX-Vault 3861 | -9/Exiles | Found Supersonic Drone Bay 3889 | -9/Exiles | Found Gui. Plasma Cannon 3909 | -9/Exiles | Build established: Scavenger-Mutant 3925 | -9/Exiles | Warned to stay clear of 0b10 Research branches 3930 | -9/Exiles | Exiles lab attacked by MAIN.C 4029 | -9/Exiles | Discovered new exit (range 10) 4043 | -9/Exiles | Left Exiles lab with Gui. Plasma Cannon 4043 | -9/Exiles | Entered Mines 4655 | -8/Mines | Discovered new exit (range 10) 4671 | -8/Mines | Entered Materials 4671 | -8/Materials | Evolved 2 slots: Propulsion x1, Utility x1 5285 | -8/Materials | Build established: Mutant 5667 | -8/Materials | Destroyed 7 combat bots 5676 | -8/Materials | Identified exit to Garrison 5677 | -8/Materials | Entered Garrison 5685 | -8/Garrison | Installed Relay Interface Framework 6004 | -8/Garrison | Build established: Skirmisher 6454 | -8/Garrison | Triggered checkpoint 6467 | -8/Garrison | Garrison Relay disabled 6726 | -8/Garrison | Build established: Mutant 7148 | -8/Garrison | Triggered checkpoint 7251 | -8/Garrison | Triggered checkpoint 7546 | -8/Garrison | Discovered new exit (range 14) 7602 | -8/Garrison | Triggered checkpoint 7642 | -8/Garrison | Garrison Relay disabled 7728 | -8/Garrison | Triggered checkpoint 7904 | -8/Garrison | Spotted B-75 Beast 7904 | -8/Garrison | Spotted B-75 Beast 7991 | -8/Garrison | Discovered new exit (range 10) 8010 | -8/Garrison | Entered Materials 8427 | -8/Materials | Build established: Skirmisher 8490 | -8/Materials | Discovered new exit (range 13) 8800 | -8/Materials | Discovered new exit (range 5) 8810 | -8/Materials | First assault squad dispatched 8838 | -8/Materials | Garrison activated, responded to threat 8841 | -8/Materials | Core integrity fell below 50% 8874 | -8/Materials | Destroyed 7 combat bots 8925 | -8/Materials | Identified exit to Garrison 8930 | -8/Materials | Entered Garrison 8968 | -8/Garrison | Triggered checkpoint 9017 | -8/Garrison | Garrison Relay disabled 9306 | -8/Garrison | Build established: Scavenger-Mutant 9329 | -8/Garrison | Destroyed 7 combat bots 9372 | -8/Garrison | Triggered checkpoint 9503 | -8/Garrison | Discovered new exit (range 13) 9638 | -8/Garrison | Triggered checkpoint 9666 | -8/Garrison | Garrison Relay disabled 9766 | -8/Garrison | Discovered new exit (range 10) 9778 | -8/Garrison | Expanded RIF knowledge: Signal Jamming 9802 | -8/Garrison | Triggered checkpoint 9823 | -8/Garrison | Entered Factory 9823 | -7/Factory | Evolved 2 slots: Power x1, Utility x1 10022 | -7/Factory | Lost 3 parts (1p2w) 10161 | -7/Factory | Garrison activated, responded to threat 10293 | -7/Factory | Build established: Bothacker-Mutant 10447 | -7/Factory | Lost 6 parts (2p1n3w) 10460 | -7/Factory | Identified exit to Garrison 10460 | -7/Factory | Entered Garrison 10464 | -7/Garrison | Expanded RIF knowledge: Command Fork 10496 | -7/Garrison | Triggered checkpoint 10531 | -7/Garrison | Garrison Relay disabled 10590 | -7/Garrison | Triggered checkpoint 10630 | -7/Garrison | Triggered checkpoint 10713 | -7/Garrison | Discovered new exit (range 10) 10736 | -7/Garrison | Triggered checkpoint 10746 | -7/Garrison | Garrison Relay disabled 10832 | -7/Garrison | Triggered checkpoint 10866 | -7/Garrison | Discovered new exit (range 10) 10949 | -7/Garrison | Discovered new exit (range 9) 11008 | -7/Garrison | Triggered checkpoint 11059 | -7/Garrison | Garrison Relay disabled 11103 | -7/Garrison | Entered Factory 11419 | -7/Factory | Fabricated M-13 Machinist (x1) 11703 | -7/Factory | Identified exit to Garrison 11708 | -7/Factory | Entered Garrison 11708 | -7/Garrison | Accompanied by 1 ally 11729 | -7/Garrison | Phase Generator disabled 11858 | -7/Garrison | Triggered checkpoint 11888 | -7/Garrison | Triggered checkpoint 11905 | -7/Garrison | Lost 3 parts (2p1w) 11908 | -7/Garrison | Garrison Relay disabled 12008 | -7/Garrison | Triggered checkpoint 12030 | -7/Garrison | Discovered new exit (range 15) 12045 | -7/Garrison | Expanded RIF knowledge: Autooverride 12110 | -7/Garrison | Triggered checkpoint 12124 | -7/Garrison | Garrison Relay disabled 12342 | -7/Garrison | Triggered checkpoint 12346 | -7/Garrison | Build established: Botlord-Mutant 12356 | -7/Garrison | Core integrity fell below 50% 12415 | -7/Garrison | Entered Factory 12415 | -6/Factory | Evolved 2 slots: Utility x2 12487 | -6/Factory | Sucked down chute 12487 | -6/Factory | Entered Waste 12488 | -6/Waste | Joined by Warlord forces that had cleared the area 12550 | -6/Waste | A Compactor rumbled back to life 12550 | -6/Waste | Spotted C-40 Crusher 12555 | -6/Waste | Allies destroyed C-40 Crusher 12660 | -6/Waste | A Compactor rumbled back to life 12660 | -6/Waste | Allies destroyed C-40 Crusher 12682 | -6/Waste | Discovered new exit (range 13) 12901 | -6/Waste | Entered Factory 12901 | -6/Factory | Accompanied by 19 allies 13029 | -6/Factory | Identified exit to Garrison 13044 | -6/Factory | Entered Garrison 13044 | -6/Garrison | Accompanied by 16 allies 13060 | -6/Garrison | Triggered checkpoint 13077 | -6/Garrison | Garrison Relay disabled 13125 | -6/Garrison | Spotted B-75 Beast 13130 | -6/Garrison | Triggered checkpoint 13139 | -6/Garrison | Triggered checkpoint 13149 | -6/Garrison | Destroyed B-75 Beast 13176 | -6/Garrison | Triggered checkpoint 13218 | -6/Garrison | Garrison Relay disabled 13220 | -6/Garrison | Triggered checkpoint 13280 | -6/Garrison | Discovered new exit (range 14) 13294 | -6/Garrison | Expanded RIF knowledge: Zone Cloak 13388 | -6/Garrison | Entered Factory 13388 | -6/Factory | Accompanied by 10 allies 13650 | -6/Factory | Discovered new exit (range 12) 13696 | -6/Factory | Identified exit to Garrison 13780 | -6/Factory | Garrison activated, responded to threat 14183 | -6/Factory | Discovered new exit (range 6) 14236 | -6/Factory | Identified exit to Garrison 14254 | -6/Factory | Entered Garrison 14254 | -6/Garrison | Accompanied by 6 allies 14296 | -6/Garrison | Triggered checkpoint 14344 | -6/Garrison | Triggered checkpoint 14371 | -6/Garrison | Garrison Relay disabled 14444 | -6/Garrison | Triggered checkpoint 14504 | -6/Garrison | Discovered new exit (range 12) 14532 | -6/Garrison | Triggered checkpoint 14558 | -6/Garrison | Garrison Relay disabled 14625 | -6/Garrison | Discovered new exit (range 9) 14712 | -6/Garrison | Triggered checkpoint 14727 | -6/Garrison | Garrison Relay disabled 14809 | -6/Garrison | Lost 3 parts (1n1u1w) 14860 | -6/Garrison | Discovered new exit (range 10) 14870 | -6/Garrison | Expanded RIF knowledge: Structural Interface 14888 | -6/Garrison | Triggered checkpoint 14892 | -6/Garrison | Garrison Relay disabled 14921 | -6/Garrison | Entered Factory 14921 | -5/Factory | Evolved 2 slots: Utility x2 15027 | -5/Factory | Lost 4 parts (1p2n1w) 15197 | -5/Factory | Discovered new exit (range 11) 15280 | -5/Factory | Lost 3 parts (2n1w) 15432 | -5/Factory | Garrison activated, responded to threat 15518 | -5/Factory | Identified exit to Garrison 15518 | -5/Factory | Entered Garrison 15518 | -5/Garrison | Accompanied by 3 allies 15527 | -5/Garrison | Expanded RIF knowledge: Autooverride 15621 | -5/Garrison | Garrison Relay disabled 15682 | -5/Garrison | Spotted B-75 Beast 15690 | -5/Garrison | Triggered checkpoint 15746 | -5/Garrison | Triggered checkpoint 15783 | -5/Garrison | Destroyed B-75 Beast 15837 | -5/Garrison | Lost 3 parts (3w) 16002 | -5/Garrison | Discovered new exit (range 14) 16028 | -5/Garrison | Found Quantum Capacitor 16158 | -5/Garrison | Triggered checkpoint 16180 | -5/Garrison | Triggered checkpoint 16213 | -5/Garrison | Garrison Relay disabled 16288 | -5/Garrison | Triggered checkpoint 16310 | -5/Garrison | Discovered new exit (range 12) 16471 | -5/Garrison | Garrison Relay disabled 16486 | -5/Garrison | Triggered checkpoint 16569 | -5/Garrison | Entered Factory 16605 | -5/Factory | Discovered new exit (range 15) 16749 | -5/Factory | Identified exit to Garrison 16827 | -5/Factory | Discovered new exit (range 19) 16873 | -5/Factory | Fabricated Powered Armor? 16956 | -5/Factory | Repaired Cmb. Gravmag System 17042 | -5/Factory | Entered Garrison 17042 | -5/Garrison | Accompanied by 4 allies 17050 | -5/Garrison | Triggered checkpoint 17131 | -5/Garrison | Triggered checkpoint 17134 | -5/Garrison | Garrison Relay disabled 17178 | -5/Garrison | Spotted B-75 Beast 17187 | -5/Garrison | Triggered checkpoint 17188 | -5/Garrison | Triggered checkpoint 17189 | -5/Garrison | Triggered checkpoint 17202 | -5/Garrison | Triggered checkpoint 17323 | -5/Garrison | Discovered new exit (range 15) 17360 | -5/Garrison | Triggered checkpoint 17381 | -5/Garrison | Garrison Relay disabled 17484 | -5/Garrison | Triggered checkpoint 17502 | -5/Garrison | Garrison Relay disabled 17535 | -5/Garrison | Discovered new exit (range 14) 17606 | -5/Garrison | Garrison Relay disabled 17617 | -5/Garrison | Discovered new exit (range 8) 17627 | -5/Garrison | Expanded RIF knowledge: Watcher Feeds 17708 | -5/Garrison | Entered Factory 17708 | -4/Factory | Accompanied by 13 allies 17708 | -4/Factory | Evolved 2 slots: Utility x2 17854 | -4/Factory | Identified exit to Garrison 17858 | -4/Factory | Entered Garrison 17858 | -4/Garrison | Accompanied by 11 allies 17900 | -4/Garrison | Triggered checkpoint 17914 | -4/Garrison | Garrison Relay disabled 17947 | -4/Garrison | Spotted B-86 Titan 17957 | -4/Garrison | Triggered checkpoint 17968 | -4/Garrison | Triggered checkpoint 17972 | -4/Garrison | Allies destroyed B-86 Titan 17980 | -4/Garrison | Triggered checkpoint 18004 | -4/Garrison | Triggered checkpoint 18133 | -4/Garrison | Discovered new exit (range 10) 18145 | -4/Garrison | Expanded RIF knowledge: Program Shield 18164 | -4/Garrison | Triggered checkpoint 18182 | -4/Garrison | Garrison Relay disabled 18337 | -4/Garrison | Entered Factory 18337 | -4/Factory | Accompanied by 14 allies 18416 | -4/Factory | Identified exit to Garrison 18889 | -4/Factory | Garrison activated, responded to threat 18905 | -4/Factory | Identified exit to Garrison 18921 | -4/Factory | Entered Garrison 18921 | -4/Garrison | Accompanied by 5 allies 19018 | -4/Garrison | Garrison Relay disabled 19108 | -4/Garrison | Spotted B-86 Titan 19120 | -4/Garrison | Allies destroyed B-86 Titan 19134 | -4/Garrison | Triggered checkpoint 19135 | -4/Garrison | Triggered checkpoint 19204 | -4/Garrison | Discovered new exit (range 13) 19282 | -4/Garrison | Triggered checkpoint 19304 | -4/Garrison | Garrison Relay disabled 19412 | -4/Garrison | Triggered checkpoint 19437 | -4/Garrison | Garrison Relay disabled 19473 | -4/Garrison | Discovered new exit (range 10) 19483 | -4/Garrison | Expanded RIF knowledge: Threat Obfuscation 19646 | -4/Garrison | Entered Research 19646 | -3/Research | Accompanied by 6 allies 19646 | -3/Research | Evolved 2 slots: Propulsion x1, Utility x1 20140 | -3/Research | Found Gamma Bomb Array 20186 | -3/Research | Discovered new exit (range 10) 20197 | -3/Research | Found Enh. Force Lance 20308 | -3/Research | Entered another Research area 20308 | -2/Research | Accompanied by 7 allies 20308 | -2/Research | Evolved 2 slots: Utility x2 20362 | -2/Research | Spotted B-90 Cyclops 20414 | -2/Research | Found Quantum Capacitor 20433 | -2/Research | Lost 6 parts (2u4w) 20642 | -2/Research | Discovered new exit (range 5) 20658 | -2/Research | Entered Access 20658 | -1/Access | Accompanied by 4 allies 20658 | -1/Access | Evolved 2 slots: Utility x2 20821 | -1/Access | Spotted B-99 Colossus 20864 | -1/Access | Allies destroyed B-99 Colossus 20984 | -1/Access | Fabricated M-13 Machinist? 21044 | -1/Access | P-80 Master assimilated allied Machinist 10a 21105 | -1/Access | Lost 3 parts (1u2w) 21291 | -1/Access | Garrison activated, responded to threat 21309 | -1/Access | Lost 3 parts (1u2w) 21363 | -1/Access | System corruption reached 10% 21617 | -1/Access | Spotted B-99 Colossus 21658 | -1/Access | Spotted B-99 Colossus 21691 | -1/Access | Discovered new exit (range 5) 21697 | *** | Escaped! Last Messages --------------- 21666_ Penetrated by Slug. 21666_ B-99 Colossus suffers critical hit. 21666_ Destroyed Arm. Heavy Treads. 21669_ Power Sword follow-up attack on B-99 Colossus. 21673_ Gamma Rifle destroyed. 21673_ Slug penetrates Sealed Heavy Doors. 21676_ Knocked back. 21676_ Slug penetrates Sealed Heavy Doors. 21678_ System corrupted: Component data lost. 21678_ B-99 Colossus activates siege mode. 21680_ Hvy. Armor Plating destroyed. 21680_ Slug penetrates Sealed Heavy Doors. 21680_ Penetrated by Slug. 21680_ Slug penetrates Sealed Heavy Doors. 21683_ Adv. Phase Shifter destroyed. 21683_ Adv. Cooling System destroyed. 21683_ Penetrated by Slug. 21683_ Slug penetrates Sealed Barrier. 21691_ Main Access Shell breached. 21691_ EXIT=FOUND Map ----- +----------------------------------------------------+ | #######?????????+ ""#??????????????? | | ????????????????# % "#??????????????? | | ??????????????### T#??????????????? | | ??????????????? ""#??????????????? | | ?????????????? ""#??????????????? | | ??????????????? ""#????????? ???? | | ??????????????? ! #???????? ????? | | ????????????????####### #?????? ?????? | | ??????????????????????# #??##? ???????? | | ???????????????????#### "##### ### # ####?????? | | ???????????????????# #?# # # #?????? | | ???????????????????# #?# # #??? | | ???????????????????# BB #?# # #??? | | ???????????????????# BB #?# ? | | ???????????????????# BB #?# o ##?? | | ???????????????????# BB #?# #??? | | ???????????????????# #?# # #??? | | ???????????????????#"""""""" "#?## + #??? | | ???????????????????????????" "???? #? #??? | | ???????????????????????????" "????# #?????? | | ???????????????????#"""""""" "#????#########h????? | | ???????????????????# #??????????????????? | | ???????????????????# "" """ #??????????????????? | | ??????????????????????" " #??????????????????? | | ??????????????????????" "" " #??????????????????? | | ??????????????????????" "@ " #??????????????????? | | ??????????????????????" " #??????????????????? | | ??????????????????????"""""" #??????????????????? | | ??????????????????????????? #??????????????????? | | ??????????????????????????? #??????????????????? | | ???????????????????????????""""??????????????????? | | ?????????????????????????????????????????????????? | | ?????????????????????????????????????????????????? | | ?????????????????????????????????????????????????? | | ?????????????????????????????????????????????????? | | ?????????????????????????????????????????????????? | | ?????????????????????????????????????????????????? | | ?????????????????????????????????????????????????? | | ?????????????????????????????????????????????????? | | ?????????????????????????????????????????????????? | | ?????????????????????????????????????????????????? | | ?????????????????????????????????????????????????? | | ?????????????????????????????????????????????????? | | ?????????????????????????????????????????????????? | | ?????????????????????????????????????????????????? | | ?????????????????????????????????????????????????? | | ?????????????????????????????????????????????????? | | ?????????????????????????????????????????????????? | | ?????????????????????????????????????????????????? | | ?????????????????????????????????????????????????? | +----------------------------------------------------+ Best States ------------- Heat Dissipation 105 Energy Generation 38 Energy Capacity 455 Matter Stores 300 Matter Capacity 300 Sight Range 23 Terrain Scan Range 20 Terrain Scan Density 210 Additional Mass Support 9 Armor Coverage 600 Resistance: KI 20 Propulsion Shielding 66 Phase Shifting 15 Evasion (%) 55 Targeting Accuracy 16 Melee Accuracy 8 Target Analysis 8 Core Analysis 10 Armor Integrity Analysis 50 Recoil Reduction 3 Offensive Hacking 10 Defensive Hacking 12 Relay Coupler Types 160 Relay Coupler Value 7 Item Schematics ----------------- Hacking Suite | -9/Materials | Scanalyzed Reactive Plating | -9/Materials | Scanalyzed Hcp. Storage Unit | -9/Mines | Hacked Lrg. Storage Unit | -8/Materials | Scanalyzed Airjet | -8/Materials | Scanalyzed Adv. Sensor Array | -8/Materials | Scanalyzed Adv. Terrain Scanner | -8/Materials | Scanalyzed Adv. Weight Redist. System | -8/Materials | Scanalyzed Powered Armor | -6/Factory | Hacked Linear Gravjet | -6/Factory | Hacked Robot Schematics ------------------ M-13 Machinist | -9/Materials | Hacked E-15 Imp | -6/Factory | Hacked Fabricated ------------ M-13 Machinist | x1 | -7/Factory Powered Armor | x2 | -5/Factory M-13 Machinist | x1 | -1/Access Alien Tech Used ----------------- None Achievements -------------- Error 47 Pwned Challenges ------------ None Game ------ Seed TargetingWarpProjector Manual? 0 Play Time 05:06:56 Cumulative 427.1 hours Start 2020.12.16 @ 17:24:43 End 2020.12.16 @ 22:42:49 Sessions 1 Manual Loads 0 Difficulty Rogue Special Mode None Game No. 158 Rogue 155 Adventurer 3 Explorer 0 Win Type 0 Total 8 Types 5/1/0/1/0/1/0/0/0 Lore% 90 Gallery% 94 Achievement% 78 Wizard Run 0 Options --------- ASCII 0 Keyboard 0 Movement Numpad Keybinds 0 Fullscreen 1 Font 18/SmallcapsGlow Map View 76x50 Tactical HUD 1 Map Filters NONE Filters NONE Steam 1 RUN: eefed7f6-e648-4da9-8a04-5a3bd55d23e8